bitfinex-derivatives/quotes_ETHF0:USTF0_20250116
["timestamp","ask_amount","ask_price","bid_price","bid_amount"]
[1737036490574,3.50010916,3316.8,3316.3,43.2496]
[1737036490776,4.66681221,3317.0,3316.9,0.60312]
[1737036490777,3.1013409,3317.0,3316.9,0.60312]
[1737036490968,0.18643914,3317.0,3316.9,0.60312]
[1737036491177,0.18643914,3317.6,3317.5,0.60301]
[1737036491482,0.18643914,3317.6,3317.5,46.05081]
[1737036491678,0.18643914,3317.6,3317.5,45.4478]
[1737036491877,0.18643914,3317.6,3317.5,1.44]
[1737036492076,0.78942914,3317.6,3317.5,1.44]
[1737036492674,0.78942914,3317.6,3316.4,1.50801]
[1737036492675,5.18643914,3317.6,3316.6,1.44]
[1737036492875,2.41588019,3317.3,3316.6,1.44]
[1737036493082,0.60309,3317.1,3316.7,40.8]
[1737036493383,2.41588019,3317.3,3316.7,40.8]
[1737036493384,0.60307,3317.2,3316.7,41.40315]
[1737036493578,2.41588019,3317.3,3316.6,4.6478]
[1737036493884,2.41588019,3317.3,3316.7,0.60315]
[1737036494076,0.60309,3317.1,3316.6,5.25097]
[1737036494382,2.41588019,3317.3,3316.6,4.6478]
[1737036494581,0.60319,3316.5,3316.3,0.8038]
[1737036494780,0.60317,3316.6,3316.3,0.8038]
[1737036495481,0.60317,3316.6,3316.1,1.44]
[1737036495482,0.6032,3316.5,3316.1,1.44]
[1737036495679,3.81098,3316.6,3316.1,2.04326]
[1737036495875,3.2078,3316.6,3316.1,1.44]
[1737036496075,3.2078,3316.6,3316.3,0.60322]
[1737036496275,3.2078,3316.6,3316.2,0.60324]
[1737036496479,3.2078,3316.6,3316.1,1.44]
[1737036496480,0.60321,3316.4,3316.1,1.44]
[1737036496785,3.2078,3316.6,3316.1,1.44]
[1737036496786,0.6032,3316.5,3316.1,1.44]
[1737036497079,0.60312,3317.0,3316.5,0.60319]
[1737036497285,3.2078,3317.1,3316.7,0.60314]
[1737036497486,3.2078,3317.1,3316.7,0.60315]
[1737036497976,3.2078,3317.1,3316.2,2.41588019]
[1737036498385,3.2078,3317.1,3316.9,0.60311]
[1737036498587,3.2078,3317.1,3316.4,3.2078]
[1737036498779,3.2078,3317.1,3316.8,0.60314]
[1737036499081,3.2078,3317.1,3316.4,3.2078]
[1737036499284,3.92364019,3317.0,3316.3,0.7911]
[1737036499588,2.41588019,3317.0,3316.3,0.7911]
[1737036499785,0.60314,3316.8,3316.4,0.6032]
[1737036500287,0.60312,3316.9,3316.5,0.60319]
[1737036500780,2.41588019,3317.0,3316.3,0.7911]
[1737036500979,0.60316,3316.7,3316.3,1.39432]
[1737036501779,2.41588019,3317.0,3316.3,0.7911]
[1737036501978,1.5408,3316.9,3316.2,1.44]
[1737036502189,1.5408,3316.9,3316.0,4.0435]
[1737036502487,0.60323,3316.3,3316.0,6.08678]
[1737036502879,1.5408,3316.9,3316.0,5.4835]
[1737036503080,0.60321,3316.4,3316.0,6.08577]
[1737036503281,3.811,3316.5,3316.0,5.4825]
[1737036503483,3.2078,3316.5,3316.0,5.4825]
[1737036503681,3.811,3316.5,3316.1,0.60325]
[1737036503984,0.60322,3316.4,3316.0,4.64677]
[1737036504185,3.2078,3316.5,3316.0,1.06712323]
[1737036504683,3.01493,3317.7,3316.2,5.62368019]
[1737036504684,3.2078,3316.9,3316.2,5.62368019]
[1737036504884,3.2078,3316.9,3316.8,0.60314]
[1737036505187,3.2078,3316.9,3316.2,5.62368019]
[1737036505391,3.2078,3316.9,3316.8,0.60314]
[1737036506091,3.2078,3316.9,3316.8,42.84214]
[1737036506678,3.2078,3316.9,3316.8,2.04214]
[1737036507086,3.2078,3316.9,3316.8,1.439]
[1737036507287,3.81092,3316.9,3316.8,1.439]
[1737036507682,3.81092,3316.9,3316.6,0.8383]
[1737036507883,3.2078,3316.9,3316.3,0.60323]
[1737036508086,0.60315,3316.8,3316.4,0.6032]
[1737036508280,3.2078,3316.9,3316.2,4.6468]
[1737036508485,3.2078,3316.9,3316.3,1.439]
[1737036508686,0.6032,3316.5,3316.3,1.439]
[1737036508885,3.2078,3316.9,3316.2,3.2078]
[1737036509191,0.60321,3316.4,3316.3,1.439]
[1737036509586,3.2078,3316.5,3316.3,1.439]
[1737036509786,3.2078,3316.5,3316.4,0.60321]
[1737036510084,0.60315,3316.8,3316.3,1.439]
[1737036510285,3.2078,3316.9,3316.3,2.04222]
[1737036510286,0.60317,3316.6,3316.3,2.04222]
[1737036510487,0.60321,3316.4,3316.3,1.439]
[1737036510882,3.2078,3316.5,3316.3,1.439]
[1737036511095,3.2078,3316.5,3316.3,2.04222]
[1737036511283,3.18838019,3316.9,3316.1,1.6021]
[1737036511284,3.2078,3316.9,3316.1,1.6021]
[1737036511486,3.2078,3316.9,3316.3,0.60322]
[1737036511686,0.60314,3316.8,3316.3,0.60321]
[1737036511886,0.60314,3316.8,3316.5,0.60318]
[1737036512497,3.2078,3316.9,3316.8,0.60314]
[1737036512804,3.81081,3317.6,3317.3,0.60305]
[1737036513105,9.03514569,3318.0,3317.4,2.41588019]
[1737036513391,9.03514569,3318.0,3317.9,0.60294]
[1737036513592,9.03514569,3318.0,3317.5,3.2078]
[1737036513892,3.2078,3317.6,3316.9,3.48086983]
[1737036514088,3.2078,3317.6,3316.9,2.4632]
[1737036514295,0.60306,3317.2,3316.9,3.0663]
[1737036514791,3.2078,3317.6,3316.9,2.4632]
[1737036514992,2.41588019,3317.5,3316.7,3.2078]
[1737036515185,0.6031,3317.0,3316.7,3.81095]
[1737036515681,0.60309,3317.1,3316.8,0.60313]
[1737036515883,3.2078,3317.6,3316.4,0.8309]
[1737036515884,0.6031,3317.0,3316.5,0.60319]
[1737036516081,0.60314,3316.8,3316.5,0.60318]
[1737036516286,0.60319,3316.5,3316.4,0.8309]
[1737036516491,3.2078,3316.8,3316.3,3.2078]
[1737036516694,0.60321,3316.4,3316.3,3.2078]
[1737036517191,4.8535,3316.8,3316.3,3.2078]
[1737036517386,0.60321,3316.4,3316.3,3.2078]
[1737036517588,4.8535,3316.8,3316.3,3.2078]
[1737036517792,0.6032,3316.5,3316.3,3.2078]
[1737036518188,0.60326,3316.1,3316.0,0.23142323]
[1737036518387,0.60327,3316.1,3315.9,0.7914]
[1737036518593,0.60324,3316.3,3316.0,0.60328]
[1737036519191,0.60326,3316.2,3315.9,1.39469]
[1737036519494,3.2078,3316.4,3315.9,0.7914]
[1737036519695,0.60323,3316.3,3316.0,0.60328]
[1737036519994,0.60328,3316.1,3315.9,0.7914]
[1737036520190,0.60328,3316.0,3315.9,0.7914]
[1737036520389,3.2078,3316.4,3315.9,0.7914]
[1737036520592,0.60325,3316.2,3316.0,0.60328]
[1737036520893,0.60328,3316.0,3315.9,0.7914]
[1737036522786,3.2078,3316.4,3315.9,0.7914]
[1737036522987,7.87708211,3316.8,3315.9,0.7914]
[1737036523296,4.66928211,3316.8,3316.5,3.2078]
[1737036523494,5.27243211,3316.8,3316.6,41.40316]
[1737036523994,5.27243211,3316.8,3316.5,3.2078]
[1737036523995,7.57279737,3316.9,3315.9,1.01686096]
[1737036524194,3.811,3316.5,3316.3,0.60322]
[1737036524493,3.811,3316.5,3316.3,0.60321]
[1737036524695,3.2078,3316.5,3316.4,0.60321]
[1737036524897,0.60314,3316.8,3316.6,0.60316]
[1737036525097,0.60313,3316.9,3316.7,0.60315]
[1737036525298,7.87708211,3317.1,3316.4,0.7932]
[1737036525501,3.2078,3316.7,3316.1,3.2078]
[1737036525695,0.60325,3316.2,3316.0,0.60326]
[1737036525998,0.805,3316.6,3315.8,0.7932]
[1737036526200,0.805,3316.6,3316.1,0.60326]
[1737036526501,0.60324,3316.3,3316.1,0.60326]
[1737036526704,0.60324,3316.3,3316.2,0.60325]
[1737036526894,0.60324,3316.3,3316.1,0.60325]
[1737036527095,3.2078,3316.2,3315.9,0.7914]
[1737036527292,0.60328,3316.0,3315.9,0.7914]
[1737036527504,3.81106,3316.2,3316.0,0.60328]
[1737036527698,0.60327,3316.1,3315.9,1.39469]
[1737036527897,0.60327,3316.1,3315.9,0.7914]
[1737036528104,3.2078,3316.2,3315.9,0.7914]
[1737036528404,0.60328,3316.0,3315.9,0.7914]
[1737036529402,3.2078,3316.2,3315.9,0.7914]
[1737036530099,4.66928211,3316.5,3315.9,0.7914]
[1737036530304,0.60325,3316.2,3316.0,0.60327]
[1737036530499,0.60324,3316.3,3316.1,0.60326]
[1737036530700,4.66928211,3316.5,3315.9,0.7914]
[1737036530899,4.0128,3316.6,3315.9,0.7914]
[1737036531100,0.60324,3316.3,3316.1,0.60326]
[1737036531397,4.66928211,3316.8,3316.2,3.2078]
[1737036531602,4.66928211,3316.8,3316.7,0.60315]
[1737036532001,3.39558211,3316.8,3316.7,3.81095]
[1737036532203,5.82734569,3317.0,3316.7,3.2078]
[1737036532204,4.67723742,3317.0,3316.7,3.2078]
[1737036532401,2.46973442,3317.2,3316.9,2.85714737]
[1737036532703,6.86189121,3317.6,3317.5,0.60301]
[1737036532906,0.55512119,3317.6,3317.5,6.66795737]
[1737036533111,8.15828397,3317.8,3317.5,6.66795737]
[1737036533112,8.09138516,3317.8,3317.7,0.60297]
[1737036533611,8.09138516,3317.8,3317.7,5.60297]
[1737036533900,0.8065,3319.0,3317.7,5.0]
[1737036534104,0.60279,3318.7,3318.3,3.2078]
[1737036534306,0.8065,3319.0,3318.6,0.6028]
[1737036534508,1.40925,3319.0,3318.6,0.6028]
[1737036534705,0.8065,3319.0,3318.3,3.2078]
[1737036535202,0.8065,3319.0,3318.7,0.60278]
[1737036535396,0.8065,3319.0,3318.3,3.2078]
[1737036535602,0.8065,3319.0,3318.7,0.60279]
[1737036535803,0.8065,3319.0,3318.9,0.60275]
[1737036535999,0.8459,3319.1,3319.0,0.60274]
[1737036536302,3.2078,3319.4,3318.7,4.71478]
[1737036536502,3.2078,3319.4,3319.2,0.60269]
[1737036537107,3.2078,3319.4,3319.1,0.60271]
[1737036537405,3.2078,3319.4,3318.7,3.2078]
[1737036537595,3.2078,3319.4,3319.2,0.60269]
[1737036538010,3.2078,3319.4,3318.7,3.2078]
[1737036538301,0.7849,3319.8,3319.2,3.2078]
[1737036538505,0.7849,3319.8,3319.5,0.60264]
[1737036538703,1.5595,3320.0,3319.3,2.85714737]
[1737036538902,1.5595,3320.0,3319.6,3.2078]
[1737036539507,0.6026,3319.8,3319.6,3.2078]
[1737036539908,2.85714737,3319.7,3319.0,3.2078]
[1737036540206,0.60265,3319.5,3319.0,3.2078]
[1737036540403,3.2078,3319.1,3318.4,4.72835816]
[1737036540597,3.2078,3318.7,3318.4,4.72835816]
[1737036540805,0.60283,3318.5,3318.4,4.72835816]
[1737036541001,0.6029,3318.1,3318.0,9.42152062]
[1737036541304,6.06494737,3318.1,3317.1,3.2078]
[1737036541500,3.2078,3317.2,3316.9,0.22099122]
[1737036541905,3.2078,3317.2,3317.0,0.6031]
[1737036542607,3.2078,3317.7,3316.9,0.22099122]
[1737036543010,0.60302,3317.5,3317.0,0.6031]
[1737036543510,3.2078,3317.7,3316.9,0.22099122]
[1737036543702,0.60301,3317.5,3317.0,0.60309]
[1737036544601,0.60301,3317.5,3316.9,0.22099122]
[1737036544602,3.2078,3317.3,3316.9,0.22099122]
[1737036544997,6.06494737,3317.3,3316.4,3.2078]
[1737036545410,0.60312,3316.9,3316.4,3.811]
[1737036545605,3.2078,3316.7,3316.0,6.06494737]
[1737036545809,2.85714737,3317.7,3316.4,3.2078]
[1737036545810,3.2078,3317.1,3316.4,3.2078]
[1737036546110,3.2078,3317.1,3316.4,6.06494737]
[1737036546607,3.2078,3317.1,3317.0,0.6031]
[1737036546806,3.2078,3317.7,3317.3,0.60304]
[1737036547007,3.2078,3317.7,3317.4,40.8]
[1737036547203,3.2078,3317.7,3317.6,0.60299]
[1737036547410,3.2078,3318.4,3317.6,2.85714737]
[1737036547611,3.2078,3318.4,3318.2,0.60287]
[1737036547811,3.2078,3318.4,3318.3,0.60286]
[1737036548108,0.7729,3319.0,3318.3,40.8]
[1737036548310,0.7729,3319.0,3318.9,0.60275]
[1737036548516,1.6091,3319.8,3319.3,0.60268]
[1737036548714,0.7729,3319.7,3318.9,3.2078]
[1737036548909,0.7729,3319.7,3319.6,0.60263]
[1737036549108,0.7729,3319.7,3318.8,4.36406737]
[1737036549109,3.2078,3320.0,3319.4,3.2078]
[1737036549306,3.2078,3320.0,3319.8,0.60258]
[1737036549509,3.2078,3320.0,3319.4,3.2078]
[1737036549709,3.2078,3320.0,3319.6,0.60261]
[1737036550323,3.81036,3320.0,3319.5,0.60264]
[1737036550721,3.2078,3320.0,3319.5,0.60264]
[1737036550917,0.6026,3319.8,3319.4,3.2078]
[1737036551118,0.60262,3319.7,3319.4,3.2078]
[1737036551419,3.2078,3319.6,3318.5,0.60281]
[1737036551619,3.2078,3319.1,3318.5,0.60282]
[1737036551815,4.71444,3319.5,3318.4,0.7717]
[1737036552017,3.2078,3319.1,3318.1,10.26757772]
[1737036552223,3.2078,3319.1,3318.5,0.60283]
[1737036552412,3.2078,3319.1,3318.8,0.60277]
[1737036552720,3.2078,3320.2,3319.0,3.2078]
[1737036552919,3.2078,3320.2,3319.4,3.2078]
[1737036552920,3.9921,3320.2,3319.4,3.2078]
[1737036553322,3.9921,3320.2,3319.8,3.2078]
[1737036553717,3.2078,3320.2,3320.0,0.60255]
[1737036553916,3.2078,3320.2,3320.1,0.60254]
[1737036554115,3.2078,3321.1,3320.7,0.60243]
[1737036554320,3.2078,3321.1,3320.2,3.2078]
[1737036554620,0.60238,3321.0,3320.4,0.60248]
[1737036554922,0.60238,3321.0,3320.3,40.8]
[1737036555219,0.60246,3320.6,3320.2,3.2078]
[1737036555421,3.2078,3320.7,3320.2,3.2078]
[1737036555623,0.60245,3320.6,3320.2,3.2078]
[1737036556211,3.2078,3320.7,3320.2,3.2078]
[1737036556523,0.8413,3320.6,3319.6,3.2078]
[1737036556716,3.2078,3319.8,3319.2,3.2078]
[1737036556912,3.2078,3319.8,3319.5,0.60264]
[1737036557117,3.2078,3319.8,3319.2,3.2078]
[1737036557824,3.2078,3319.8,3319.4,0.60266]
[1737036558018,3.81039,3319.8,3319.5,0.22484471]
[1737036558219,3.2078,3319.8,3319.0,0.8454]
[1737036558419,3.2078,3320.3,3319.2,3.2078]
[1737036558818,3.2078,3320.3,3319.9,0.60256]
[1737036559120,0.8413,3320.6,3319.7,1.50653]
[1737036559324,0.60236,3321.1,3320.5,0.60246]
[1737036559526,3.2078,3320.8,3320.5,0.60246]
[1737036559718,3.2078,3320.8,3320.0,3.2078]
[1737036560024,3.2078,3321.2,3320.4,3.2078]
[1737036560225,3.2078,3321.2,3320.7,0.60241]
[1737036560418,3.2078,3321.2,3320.8,0.60241]
[1737036560918,0.8093,3321.4,3321.1,0.60236]
[1737036561119,3.2078,3321.7,3321.4,0.60229]
[1737036561521,3.2078,3321.7,3321.0,3.2078]
[1737036561724,3.2078,3321.7,3321.5,0.60228]
[1737036561917,3.2078,3321.7,3321.6,0.60226]
[1737036563224,3.2078,3321.7,3321.0,3.2078]
[1737036563728,3.2078,3321.7,3321.6,0.60226]
[1737036564622,3.2078,3321.7,3321.4,0.22746654]
[1737036565224,3.81005,3321.7,3321.4,0.22746654]
[1737036565737,3.2078,3321.7,3321.5,0.60228]
[1737036565934,3.81006,3321.7,3321.4,0.22746654]
[1737036566135,3.2078,3321.7,3321.4,0.22746654]
[1737036566636,3.2078,3321.7,3321.5,0.60227]
[1737036566837,3.2078,3321.7,3321.4,0.22746654]
[1737036566838,3.2078,3321.7,3321.6,0.60226]
[1737036567634,4.0171,3322.2,3321.5,3.2078]
[1737036567831,3.2078,3322.2,3322.0,0.60219]
[1737036568138,3.2078,3322.2,3321.5,3.2078]
[1737036568139,3.2078,3322.2,3322.1,0.60217]
[1737036568539,3.2078,3322.7,3322.5,0.60209]
[1737036569135,3.2078,3322.7,3322.1,40.8]
[1737036569337,45.57085225,3326.1,3322.1,40.8]
[1737036569338,3.2078,3323.2,3322.3,3.2078]
[1737036570140,3.2078,3322.4,3321.6,3.2078]
[1737036570338,3.2078,3322.4,3321.8,0.60222]
[1737036570339,0.60215,3322.3,3321.8,0.60222]
[1737036570543,0.60217,3322.2,3321.7,0.60224]
[1737036570733,0.60215,3322.3,3321.8,0.60223]
[1737036570938,0.60215,3322.3,3321.6,3.2078]
[1737036571145,3.2078,3322.4,3321.7,0.60224]
[1737036571444,0.60215,3322.3,3321.8,0.60223]
[1737036571642,0.60215,3322.3,3321.6,3.2078]
[1737036571944,3.2078,3322.4,3322.0,0.60218]
[1737036572240,0.60217,3322.2,3321.7,0.60223]
[1737036572440,3.2078,3322.4,3321.6,3.2078]
[1737036573036,3.2078,3322.4,3322.3,0.60214]
[1737036573243,3.80979,3323.1,3322.6,0.60208]
[1737036573441,3.2078,3323.1,3322.3,3.2078]
[1737036573634,3.2078,3323.6,3322.4,1.50531]
[1737036573838,3.2078,3323.6,3322.5,40.8]
[1737036574038,0.60193,3323.5,3323.1,0.60199]
[1737036574644,0.60193,3323.5,3323.0,0.60199]
[1737036574852,0.60193,3323.5,3323.1,0.60199]
[1737036575045,3.2078,3323.6,3323.3,0.60194]
[1737036575339,0.60196,3323.3,3322.9,0.60202]
[1737036575734,0.60192,3323.5,3323.1,0.60198]
[1737036576144,3.2078,3323.6,3322.7,3.2078]
[1737036576346,3.2078,3323.6,3323.1,0.22894089]
[1737036576945,0.60198,3323.2,3323.1,0.22894089]
[1737036577146,0.60199,3323.1,3322.5,0.60209]
[1737036577345,3.2078,3323.2,3322.3,4.0439]
[1737036577646,0.60204,3322.9,3322.5,0.60209]
[1737036578143,3.2078,3323.2,3322.3,3.2078]
[1737036578340,3.2078,3323.2,3322.0,0.60218]
[1737036578341,0.60213,3322.4,3322.0,0.60218]
[1737036578541,0.60209,3322.6,3322.2,0.60215]
[1737036578741,3.2078,3322.7,3321.8,44.7964]
[1737036579045,3.2078,3322.3,3322.0,0.60218]
[1737036579250,3.09577,3322.8,3322.6,0.60207]
[1737036579251,1.5906,3322.8,3322.6,0.60207]
[1737036579550,1.5906,3322.8,3322.5,0.6021]
[1737036579743,1.5906,3322.8,3322.1,40.8]
[1737036579744,0.8016,3322.8,3322.2,3.2078]
[1737036579951,0.8016,3322.8,3322.7,0.60207]
[1737036581141,0.60201,3323.0,3322.3,1.5964]
[1737036581453,0.789,3323.4,3322.3,1.5964]
[1737036581641,0.789,3323.4,3322.6,3.2078]
[1737036581946,1.39094,3323.4,3323.0,0.602]
[1737036582343,0.789,3323.4,3322.7,1.50517]
[1737036582544,0.789,3323.4,3323.1,0.60198]
[1737036583045,0.789,3323.4,3323.2,0.60197]
[1737036583241,0.789,3323.4,3322.8,0.60205]
[1737036583440,0.789,3323.4,3323.1,0.60198]
[1737036583842,0.60193,3323.5,3323.2,0.60197]
[1737036584242,0.8227,3323.8,3322.7,1.50517]
[1737036584449,0.8227,3323.8,3323.1,2.10698]
[1737036584644,0.8227,3323.8,3323.5,0.60191]
[1737036585042,0.8227,3323.8,3323.5,41.40191]
[1737036585447,1.42457,3323.8,3323.5,41.40192]
[1737036586347,1.42457,3323.8,3323.2,0.7837]
[1737036586348,0.8227,3323.8,3323.2,0.7837]
[1737036586552,3.2078,3324.3,3323.2,0.7837]
[1737036586850,3.2078,3324.3,3323.5,0.22946532]
[1737036587047,3.2078,3324.3,3323.5,0.83138532]
[1737036587352,3.2078,3324.3,3323.7,0.60188]
[1737036587353,0.60183,3324.1,3323.7,0.60188]
[1737036587655,0.60183,3324.0,3323.7,0.60188]
[1737036587948,3.2078,3324.3,3323.5,0.22946532]
[1737036588349,0.60186,3323.9,3323.6,0.6019]
[1737036588555,0.60183,3324.0,3323.7,0.60188]
[1737036588749,0.60186,3323.9,3323.6,0.60189]
[1737036589056,3.2078,3324.3,3323.6,0.60189]
[1737036589057,0.60185,3324.0,3323.6,0.60189]
[1737036589251,3.2078,3323.9,3323.6,0.60189]
[1737036589456,3.80966,3323.9,3323.5,0.83137532]
[1737036589651,0.8174,3323.8,3323.5,0.22946532]
[1737036590057,1.41927,3323.8,3323.5,0.83137532]
[1737036590260,0.60189,3323.7,3323.5,0.22946532]
[1737036590649,0.8174,3323.8,3323.0,3.2078]
[1737036590850,0.60191,3323.6,3323.3,0.60194]
[1737036591062,0.8174,3323.8,3323.0,3.2078]
[1737036591356,0.8174,3323.8,3323.1,41.40199]
[1737036591559,3.80974,3323.5,3323.1,40.8]
[1737036591747,3.80974,3323.5,3323.3,0.22176818]
[1737036592057,0.60194,3323.4,3323.3,0.22176818]
[1737036592649,3.2078,3323.5,3322.8,0.60204]
[1737036592850,3.2078,3323.5,3322.7,1.5903]
[1737036593057,3.2078,3323.5,3322.9,0.60202]
[1737036593058,0.60197,3323.3,3322.9,0.60202]
[1737036593556,3.2078,3323.5,3322.7,42.3903]
[1737036593755,0.60199,3323.1,3322.8,0.60204]
[1737036593959,0.60198,3323.2,3322.8,0.60204]
[1737036594351,0.60198,3323.2,3322.7,42.3903]
[1737036594655,4.71264,3323.5,3322.7,41.40206]
[1737036594851,3.80981,3323.0,3322.7,41.40206]
[1737036595655,3.2078,3323.0,3322.7,40.8]
[1737036595957,0.60201,3323.1,3322.8,0.60204]
[1737036596858,3.2078,3323.4,3322.7,40.8]
[1737036597061,3.2078,3323.0,3322.2,0.7901]
[1737036597253,4.35122752,3323.3,3322.3,1.31741428]
[1737036597254,3.2078,3322.5,3322.3,1.31741428]
[1737036597453,3.2078,3322.5,3322.4,40.8]
[1737036598054,3.2078,3322.5,3322.0,0.7447]
[1737036598255,3.2078,3322.5,3321.8,3.2078]
[1737036598460,3.80999,3322.1,3321.7,48.46201772]
[1737036598659,0.6022,3322.0,3321.7,47.85977772]
[1737036598963,2.84632752,3321.9,3321.7,7.05977772]
[1737036599259,2.84632752,3321.9,3321.1,7.05977772]
[1737036599260,0.6023,3321.4,3321.1,7.05977772]
[1737036599453,3.2078,3321.4,3321.1,47.85977772]
[1737036599652,3.2078,3321.4,3321.3,0.60232]
[1737036600053,4.35168752,3322.3,3321.3,3.2078]
[1737036600054,3.2078,3322.3,3321.3,3.2078]
[1737036600254,3.2078,3322.3,3322.2,0.60216]
[1737036600456,3.2078,3322.3,3321.7,3.2078]
[1737036600658,0.60207,3322.7,3322.2,0.60216]
[1737036600861,0.7871,3322.8,3322.3,0.60213]
[1737036600862,1.38915,3322.8,3322.3,0.60213]
[1737036601052,3.2078,3322.9,3322.8,0.60205]
[1737036601259,3.2078,3322.9,3322.8,41.40205]
[1737036601664,3.2078,3322.9,3322.8,40.8]
[1737036601960,3.2078,3322.9,3322.2,0.22933907]
[1737036601961,4.71289,3322.9,3322.2,0.22933907]
[1737036602162,3.80991,3322.5,3322.2,0.22933907]
[1737036602362,3.2078,3322.5,3322.2,41.02933907]
[1737036602865,3.2078,3323.0,3322.2,0.22933907]
[1737036603069,3.2078,3323.0,3322.7,0.60205]
[1737036603270,0.782,3323.3,3322.6,3.2078]
[1737036603465,1.40644,3323.4,3323.0,0.602]
[1737036603662,0.8045,3323.4,3323.0,0.602]
[1737036603857,0.8045,3323.4,3322.6,3.2078]
[1737036604064,0.60197,3323.3,3322.8,0.60204]
[1737036604267,4.0123,3323.4,3322.4,1.01775237]
[1737036604470,4.0123,3323.4,3322.5,4.71306]
[1737036604768,3.2078,3323.4,3322.6,2.82241739]
[1737036604965,3.2078,3323.4,3323.3,0.60196]
[1737036605368,4.012,3324.0,3323.1,1.50496]
[1737036605577,3.80956,3324.4,3323.4,2.10679]
[1737036605865,3.80956,3324.4,3324.2,0.60178]
[1737036605866,3.2078,3324.4,3324.2,0.60178]
[1737036606068,8.2078,3324.4,3323.5,1.31677635]
[1737036606369,0.60202,3323.0,3322.4,11.77690078]
[1737036606574,3.2078,3322.9,3322.4,11.77690078]
[1737036606773,3.80983,3322.9,3322.5,11.87333078]
[1737036607271,8.80983,3322.9,3322.8,1.55217772]
[1737036607465,0.60207,3322.7,3322.6,8.49809834]
[1737036607867,3.2078,3322.9,3321.8,3.2078]
[1737036608067,0.60213,3322.4,3322.1,0.60216]
[1737036608370,3.2078,3322.7,3322.0,0.60218]
[1737036608371,0.60215,3322.3,3322.0,0.60218]
[1737036608559,3.2078,3322.7,3321.8,3.2078]
[1737036608763,3.2078,3323.1,3321.8,3.2078]
[1737036608969,3.2078,3323.1,3322.3,3.2078]
[1737036609167,0.60203,3323.0,3322.7,0.60206]
[1737036609363,3.2078,3323.1,3322.4,2.37]
[1737036609568,3.2078,3323.1,3322.6,0.60207]
[1737036609569,0.60202,3323.0,3322.6,0.60207]
[1737036609769,0.60204,3322.9,3322.5,0.60208]
[1737036609968,0.6021,3322.5,3322.4,0.7826]
[1737036610975,0.60216,3322.2,3322.1,0.23043323]
[1737036611178,3.2078,3322.5,3322.1,0.23043323]
[1737036611573,0.60212,3322.4,3322.1,0.83260323]
[1737036611780,0.60212,3322.4,3322.1,0.23043323]
[1737036611973,0.60216,3322.2,3322.1,0.23043323]
[1737036612369,3.2078,3322.5,3322.1,0.23043323]
[1737036612671,3.2078,3322.5,3322.1,0.83260323]
[1737036612867,0.60196,3323.4,3322.9,0.60201]
[1737036613068,3.2078,3323.5,3323.2,0.60197]
[1737036613373,5.82841903,3323.7,3323.3,40.8]
[1737036613573,5.82841903,3324.0,3323.3,40.8]
[1737036613771,0.60188,3323.8,3323.3,41.40195]
[1737036614076,5.82841903,3324.0,3323.3,44.0078]
[1737036614276,6.43024903,3324.0,3323.6,0.60189]
[1737036614472,0.60185,3323.9,3323.5,0.60191]
[1737036614675,3.2078,3324.1,3323.3,44.0078]
[1737036614872,3.2078,3324.1,3323.9,0.60185]
[1737036615077,3.80961,3324.1,3324.0,0.7846]
[1737036615279,3.80961,3324.1,3323.6,0.60189]
[1737036615280,3.2078,3324.1,3323.3,44.0078]
[1737036615474,3.2078,3324.1,3323.4,0.7846]
[1737036616180,0.60183,3324.0,3323.5,0.6019]
[1737036616386,3.2078,3324.1,3323.4,0.7846]
[1737036616675,0.8185,3324.5,3323.4,0.7846]
[1737036616676,0.60178,3324.3,3323.9,0.60184]
[1737036616882,0.6018,3324.2,3323.8,0.60186]
[1737036617077,0.60177,3324.4,3324.0,0.60183]
[1737036617277,0.8185,3324.5,3323.7,3.2078]
[1737036617476,3.2078,3324.6,3323.8,0.808]
[1737036617683,3.80953,3324.6,3324.2,0.60178]
[1737036618180,3.80953,3324.6,3323.8,1.5588]
[1737036618181,3.2078,3324.6,3324.1,3.2078]
[1737036618389,5.83472124,3325.2,3324.2,1.50449]
[1737036618390,0.60164,3325.1,3324.2,1.50449]
[1737036618682,0.60169,3324.8,3324.5,0.60174]
[1737036618885,0.60171,3324.7,3324.4,0.60175]
[1737036619088,0.60171,3324.7,3324.5,40.8]
[1737036619385,3.2078,3324.8,3324.5,40.8]
[1737036619680,3.2078,3324.8,3324.3,0.98704554]
[1737036620083,3.8095,3324.8,3324.4,0.60175]
[1737036620282,3.2078,3324.8,3324.4,0.60175]
[1737036620579,3.8095,3324.8,3324.3,1.58880554]
[1737036620772,3.2078,3324.8,3324.4,0.60174]
[1737036620974,3.2078,3324.8,3324.3,0.98704554]
[1737036621180,3.2078,3324.8,3324.6,0.60172]
[1737036621380,1.2692,3325.5,3324.3,0.98704554]
[1737036621580,0.6016,3325.3,3324.9,0.60166]
[1737036621779,0.819,3325.5,3324.5,3.2078]
[1737036621780,2.32291,3325.5,3324.5,3.2078]
[1737036621980,0.60172,3324.6,3324.5,3.2078]
[1737036622182,0.60176,3324.4,3324.3,0.98704554]
[1737036622383,0.60176,3324.4,3324.3,0.7576]
[1737036623190,3.2078,3324.7,3324.0,3.43446863]
[1737036623384,3.80952,3324.7,3324.3,0.60177]
[1737036623586,3.658,3325.1,3324.1,0.8031]
[1737036623785,3.2078,3324.3,3324.1,0.8031]
[1737036623988,0.60179,3324.2,3324.1,0.8031]
[1737036624492,3.2078,3324.3,3324.1,0.8031]
[1737036624683,3.2078,3324.3,3324.2,0.60179]